Cogmind - Beta 9.1 @@@ ROGUE MODE // 2019.11.05 @ 06:38:10 Player: zapruda Result: Destroyed by G-34 Mercenary with Small Laser Performance ------------- Evolutions (1) 500 Regions Visited (2) 400 Robots Destroyed (15) 75 Value Destroyed (407) 407 Prototype IDs (4) 80 Alien Tech Used (0) 0 Bonus (0) 0 TOTAL SCORE: 1462 Bonus ------- None Cogmind --------- Core Integrity 0/400 Matter 300/300 Energy 100/100 System Corruption 0% Temperature Cool (6) Location -9/Materials Parts ------- Power (1) Propulsion (4) Utility (2) High-capacity Storage Unit Weapon (2) Inventory (12) Ion Engine Ion Engine Improved Ion Engine Large Matter Pod (150) Peak State ------------ Power Ion Engine Propulsion Aluminum Leg Aluminum Leg Wheel Compact Wheel Utility Small Storage Unit High-capacity Storage Unit Weapon Assault Rifle Grenade Launcher Inventory Ion Engine Medium Laser Small Laser [Rating: 9] Favorites ----------- Power Ion Engine Engine Ion Engine Propulsion Aluminum Leg Leg Aluminum Leg Wheel Wheel Utility High-capacity Storage Unit Storage High-capacity Storage Unit Protection Light Armor Plating Weapon EM Shotgun Energy Gun EM Shotgun Ballistic Gun Assault Rifle Launcher Grenade Launcher Build | -11 -10 -9 ------- Run | Scr Mat Mat Slots Evolved 2 | . . 2 Power . | . . . Propulsion 2 | . . 2 Utility . | . . . Weapon . | . . . Parts Attached 23 | 6 3 14 Power 3 | 1 . 2 Engine 3 | 1 . 2 Core . | . . . Reactor . | . . . Propulsion 6 | 2 . 4 Treads . | . . . Leg 4 | . . 4 Wheel 2 | 2 . . Hover . | . . . Flight . | . . . Utility 3 | 1 . 2 Device . | . . . Storage 2 | 1 . 1 Processor . | . . . Hackware . | . . . Protection 1 | . . 1 Artifact . | . . . Weapon 11 | 2 3 6 Energy Gun 7 | 1 1 5 Energy Cannon . | . . . Ballistic Gun 3 | 1 1 1 Ballistic Cannon . | . . . Launcher 1 | . 1 . Special Weapon . | . . . Impact Weapon . | . . . Slashing Weapon . | . . . Piercing Weapon . | . . . Special Melee Weapon . | . . . Unidentified Prototypes . | . . . Parts Lost 16 | . . 16 Power 3 | . . 3 Propulsion 6 | . . 6 Utility 1 | . . 1 Weapon 6 | . . 6 Highest Loss Streak 9 | . . 9 Average Slot Usage (%) 71 | . 85 69 Engine 10 | . 14 10 Leg 16 | . . 18 Wheel 7 | . 28 5 Storage 18 | . 14 19 Protection 1 | . . 2 Energy Gun 9 | . 15 8 Ballistic Gun 3 | . 6 3 Launcher 3 | . 6 2 Naked Turns . | . . . Heaviest Build 46 | 12 14 46 Greatest Support 30 | 26 26 30 Greatest Overweight (x) 14 | 1 . 14 Average Overweight (x) 1 | . . 2 Largest Inventory Capacity 14 | 6 6 14 Average Capacity 11 | 5 6 13 Most Carried 5 | 4 5 5 Average Carried 2 | 2 4 2 Final Capacity 12 | 6 6 12 Final Carried 5 | 4 5 4 Class Distribution -------------------- 78% | Mutant 21% | Scavenger-Mutant Dominant Class ---------------- Mutant | -10/Materials Mutant | -9/Materials Resources | -11 -10 -9 ----------- Run | Scr Mat Mat Matter Collected 682 | 147 45 490 Remotely . | . . . Salvage Created 547 | . 72 475 Parts 37 | . 7 30 Haulers Intercepted . | . . . Recyclers Shooed . | . . . Parts Field Recycled . | . . . Retrieved Matter . | . . . Parts Self-Destructed . | . . . Prevented . | . . . Kills | -11 -10 -9 ------- Run | Scr Mat Mat Combat Hostiles Destroyed 10 | . 2 8 Guns 9 | . 1 8 AOE 1 | . 1 . Classes Destroyed 7 | . 2 5 Worker 1 | . . 1 Builder 1 | . . 1 Recycler 1 | . . 1 Watcher 2 | . 1 1 Grunt 8 | . 2 6 Brawler 1 | . . 1 Sentry 1 | . . 1 Best Kill Streak 3 | . 3 3 Combat Bots Only 2 | . 2 2 Max Kills in Single Turn 1 | . 1 1 Gunslinging . | . . . Exploded 1 | . 1 . Melee . | . . . Uniques/NPCs Destroyed . | . . . Combat | -11 -10 -9 -------- Run | Scr Mat Mat Damage Taken 1554 | . 20 1534 Core 424 | . 20 404 Absorbed by Shields . | . . . Core Remaining (%) 96 | 100 92 . Volleys Fired 65 | 1 4 60 Largest 2 | 2 2 2 Hottest 85 | 60 50 85 Shots Fired 89 | 2 7 80 Gun 77 | 2 4 71 Cannon . | . . . Launcher 12 | . 3 9 Special . | . . . Kinetic 21 | 1 4 16 Thermal 32 | 1 . 31 Explosive 12 | . 3 9 Electromagnetic 24 | . . 24 Robot Hit Streak 12 | 1 3 12 Robot Miss Streak 4 | 1 1 4 Penetration Max . | . . . Secondary Targets . | . . . Shots Hit Robots 59 | 1 3 55 Core Hits 32 | . 6 26 Critical Hits . | . . . Critical Kills . | . . . Critical Parts Destroyed . | . . . Melee Attacks . | . . . Impact . | . . . Slashing . | . . . Piercing . | . . . Sneak Attacks . | . . . Combat Hostiles . | . . . Follow-up Attacks . | . . . Damage Inflicted 959 | 11 163 785 Guns 645 | 11 36 598 Cannons . | . . . Explosions 286 | . 127 159 Melee . | . . . Ramming 28 | . . 28 Kinetic 204 | 11 36 157 Thermal 202 | . . 202 Explosive 286 | . 127 159 Electromagnetic 239 | . . 239 Impact . | . . . Slashing . | . . . Piercing . | . . . Highest Corruption . | . . . Average Corruption . | . . . Corruption Purged . | . . . Overload Shots . | . . . Overflow Damage . | . . . Projectiles . | . . . Explosions . | . . . Melee . | . . . Knockbacks . | . . . Impact . | . . . Kinetic . | . . . Secondary . | . . . Self-Inflicted Damage 10 | . . 10 Shots . | . . . Rammed 5 | . . 5 Targets Rammed 6 | . . 6 Kicked 1 | . . 1 Crushed . | . . . Highest Temperature 149 | . . 149 Average Temperature 40 | . . 40 Received Heat Transfer 798 | . 12 786 Siege Activations . | . . . Robots Corrupted . | . . . Combat Hostiles . | . . . Parts Fried 2 | . . 2 Impact Corruptions . | . . . Robots Melted . | . . . Combat Hostiles . | . . . Parts Melted . | . . . Heat Transferred 545 | . . 545 Parts Sabotaged . | . . . Parts Stolen . | . . . Parts Stripped . | . . . Power Chain Reactions . | . . . Missiles Intercepted . | . . . Alert | -11 -10 -9 ------- Run | Scr Mat Mat Peak Influence 123 | . 72 123 Average Influence 67 | . 18 78 Maximum Alert Level . | . . . Low Security (%) 100 | . . . Level 1 . | . . . Level 2 . | . . . Level 3 . | . . . Level 4 . | . . . Level 5 . | . . . High Security . | . . . Max Security . | . . . Squads Dispatched 6 | . 1 5 Investigation 4 | . . 4 Extermination . | . . . Reinforcement 2 | . 1 1 Assault . | . . . Garrison . | . . . Intercept . | . . . Construction Impeded . | . . . Haulers Reinforced . | . . . Stealth | -11 -10 -9 --------- Run | Scr Mat Mat Distress Signals 1 | . . 1 Communications Jammed . | . . . Distress Signals . | . . . Times Spotted 23 | . 4 19 Peak Tracking Total 6 | . 2 6 Tactical Retreats 1 | . . 1 Traps | -11 -10 -9 ------- Run | Scr Mat Mat Traps Triggered 1 | . . 1 Indirectly . | . . . Trap Hack Attempts . | . . . Triggered . | . . . Disarmed . | . . . Reprogrammed . | . . . Reused . | . . . Traps Extracted . | . . . Installed . | . . . Triggered . | . . . Machines | -11 -10 -9 ---------- Run | Scr Mat Mat Machines Disabled 1 | . 1 . Max in Single Turn 1 | . 1 . Machines Sabotaged . | . . . Garrisons Compromised . | . . . Overloaded Fab Kills . | . . . Fab Network Shutdowns . | . . . Hacking | -11 -10 -9 --------- Run | Scr Mat Mat Machines Accessed 5 | . 1 4 Terminals 4 | . 1 3 Fabricators . | . . . Repair Stations . | . . . Recycling Units . | . . . Scanalyzers 1 | . . 1 Garrison Access . | . . . Total Hacks 21 | . 2 19 Successful 15 | . 2 13 Failed 6 | . . 6 Catastrophic . | . . . Database Lockouts . | . . . Manual . | . . . Terminals 13 | . 2 11 Fabricators . | . . . Repair Stations . | . . . Recycling Units . | . . . Scanalyzers 8 | . . 8 Garrison Access . | . . . Terminal Hacks 7 | . 2 5 Prototype ID Bank 2 | . . 2 Branch Access Points 1 | . . 1 Emergency Access Points 1 | . 1 . Alert Level 1 | . 1 . Hauler Manifests 1 | . . 1 Zone Layout 1 | . . 1 Fabricator Hacks . | . . . Repair Station Hacks . | . . . Recycling Unit Hacks . | . . . Scanalyzer 8 | . . 8 Insert Component 4 | . . 4 Analyze 4 | . . 4 Garrison Access Hacks . | . . . Unauthorized Hacks . | . . . Terminals . | . . . Fabricators . | . . . Repair Stations . | . . . Recycling Units . | . . . Scanalyzers . | . . . Garrison Access . | . . . Data Cores Recovered . | . . . Used . | . . . Hacking Detections 4 | . . 4 Full Trace Events 4 | . . 4 Feedback Events . | . . . Feedback Blocked . | . . . Robot Schematics Acquired . | . . . Robots Built . | . . . Matter . | . . . Time . | . . . Total Robot Build Rating . | . . . Part Schematics Acquired 4 | . . 4 Parts Built . | . . . Matter . | . . . Time . | . . . Total Part Build Rating . | . . . Parts Repaired . | . . . Time . | . . . Parts Recycled . | . . . Recycled Matter . | . . . Retrieved Matter . | . . . Retrieved Components . | . . . Parts Scanalyzed 4 | . . 4 Part Schematics Acquired 4 | . . 4 Parts Damaged 1 | . . 1 Bothacking | -11 -10 -9 ------------ Run | Scr Mat Mat Used RIF Installer . | . . . Robots Hacked . | . . . Non-combat . | . . . Combat . | . . . Robot Hacks Applied . | . . . Relay Couplers Released . | . . . Robots Rewired . | . . . Allies Hacked . | . . . Hacks Repelled . | . . . Allies | -11 -10 -9 -------- Run | Scr Mat Mat Total Allies . | . . . Largest Group . | . . . Highest-Rated Group . | . . . Highest-Rated Ally . | . . . Total Orders . | . . . Ally Attacks . | . . . Total Damage . | . . . Kills . | . . . Allies Corrupted . | . . . Allies Melted . | . . . Intel | -11 -10 -9 ------- Run | Scr Mat Mat Robot Analysis Total . | . . . Derelict Logs Recovered . | . . . Drone Launches . | . . . Drone Recoveries . | . . . Exploration | -11 -10 -9 ------------- Run | Scr Mat Mat Turns Passed 827 | 55 91 681 Spaces Moved 400 | 38 81 281 Core 13 | 11 . 2 Treads . | . . . Legs 167 | . . 167 Wheels 220 | 27 81 112 Hover . | . . . Flight . | . . . Fastest Speed 50 | 50 90 90 Average Speed 143 | 78 90 167 Slowest Speed 750 | 90 90 750 Overloaded Moves . | . . . Propulsion Burnouts . | . . . Robots Hopped . | . . . Cave-ins Triggered . | . . . Exploration Rate (%) 16 | 3 21 24 Regions Visited 2 Branch Regions . Pre-discovered Areas . | . . . Known Exits Taken . | . . . Unknown Exits Taken 2 | 1 1 . Scrap Searched . | . . . Spaces Dug 3 | . . 3 Terrain Destroyed 44 | . 12 32 Melee . | . . . Projectile . | . . . AOE 44 | . 12 32 Actions | -11 -10 -9 --------- Run | Scr Mat Mat Total 557 | 60 90 407 Wait 40 | 7 . 33 Move 398 | 37 80 281 Hop . | . . . Pick Up 22 | 9 2 11 Fast Attach 1 | 1 . . Attach 18 | 5 . 13 Detach 1 | . . 1 Swap 4 | . 3 1 Drop 2 | . 1 1 Fire 65 | 1 4 60 Melee . | . . . Ram . | . . . Kick 6 | . . 6 Crush . | . . . Escape Stasis . | . . . Rewire . | . . . Trap . | . . . Miscellaneous . | . . . Route ------- -11/Scrapyard -10/Materials -9/Materials (discovered 1 exit: Min) History --------- Turn | Location | Event 15 | -11/Scrapyard | Discovered new exit (range 16) 56 | -11/Scrapyard | Entered Materials 130 | -10/Materials | Discovered new exit (range 15) 147 | -10/Materials | Entered another Materials area 147 | -9/Materials | Evolved 2 slots: Propulsion x2 213 | -9/Materials | Identified exit to Mines 312 | -9/Materials | Build established: Mutant 413 | -9/Materials | Core integrity fell below 50% 430 | -9/Materials | Lost 9 parts (1p4n4w) 816 | -9/Materials | Core integrity fell below 20% 828 | -9/Materials | Destroyed by G-34 Mercenary with Small Laser Last Messages --------------- Schematic downloaded. Connecting with Scanalyzer... >>Insert(EM Shotgun) Scanning EM Shotgun... Ready to analyze. >>Scanalyze Scanning: EM Shotgun... Schematic downloaded. ALERT: Suspicious activity at Scanalyzer M001. Dispatching Investigation squad. W-16 Scout sends out distress signal. Slammed into A-02 Transporter. Destabilizing: Short circuit. Ion Engine permanently disabled. Slammed into A-02 Transporter. Aluminum Leg destroyed. EM Shotgun destroyed. Lgt. Armor Plating destroyed. Aluminum Leg destroyed. Ion Engine destroyed. Map ----- +----------------------------------------------------+ | """ # ##### # #??# #?????# #??????? | | """ ## #######+### """ #??# #?????# #??????? | | "" ## #?# # """ #??# #?????# +??????? | | ## #?# # """ #??# #?????? #??????? | | ##### #?# # #??# #?????? #??????? | | #?# ############# #?????? ##?????? | | ######+#### #?# # ###### ####??? | | # #?# """ """=# ?? | | # #?# """ """*+ ?? | | """"" # #?# """ """!# ?? | | """"" # #?# ! ==### #### ###???? | | """"" # #?# /#?# #????#####?????? | | # #?# #?# #??????????????? | | ###################?# #?# #??????????????? | | ????????????????????###########?# #??????????????? | | ????????????????????????????????# #??????????????? | | ????????????????????????????????# #??????????????? | | ????????????????????????????????# #??????????????? | | ????????????????????????????????# #???????" ?????? | | ????????????????????????????????# #??????" ?????? | | ????????????????????????????????# #?????"""??????? | | ???????????????????????????????## ####? ""??????? | | ???????????##########+######+### = ! # """ ?????? | | ?????????? g gg!! # """ ?????? | | ?????????? u + """ ?????? | | ?????????? @ g # " #????? | | ?????????????????##### ####### Y #? #????? | | ?????????????????????# ????#####/##########????? | | ?????????????????????#k ?????# ####### | | ?????????????????????# ?????# "" / | | ?????????????????????# ??????# """ ####### # | | ?????????????????????+ ??? + S" #?????????? | | ?????????????????????#???##### """ #?????????? | | ?????????????????????????????# """ #?????????? | | ?????????????????????????????# """ #?????????? | | ?????????????????????????????# #?????????? | | ?????????????????????????????###########?????????? | | ?????????????????????????????????????????????????? | | ?????????????????????????????????????????????????? | | ?????????????????????????????????????????????????? | | ?????????????????????????????????????????????????? | | ?????????????????????????????????????????????????? | | ?????????????????????????????????????????????????? | | ?????????????????????????????????????????????????? | | ?????????????????????????????????????????????????? | | ?????????????????????????????????????????????????? | | ?????????????????????????????????????????????????? | | ?????????????????????????????????????????????????? | | ?????????????????????????????????????????????????? | | ?????????????????????????????????????????????????? | +----------------------------------------------------+ Best States ------------- Heat Dissipation 28 Energy Generation 10 Energy Capacity 250 Matter Stores 300 Matter Capacity 300 Sight Range 16 Terrain Scan Density 10 Armor Coverage 150 Evasion (%) 50 Item Schematics ----------------- Ion Engine | -9/Materials | Scanalyzed Imp. Ion Engine | -9/Materials | Scanalyzed Lrg. Matter Pod | -9/Materials | Scanalyzed EM Shotgun | -9/Materials | Scanalyzed Robot Schematics ------------------ None Fabricated ------------ Nothing Alien Tech Used ----------------- None Achievements -------------- Oops Challenges ------------ None Game ------ Seed ChromaticPotentialMaul Manual? 0 Play Time 00:10:32 Cumulative 7.2 hours Start 2019.11.05 @ 06:29:45 End 2019.11.05 @ 06:38:10 Sessions 1 Manual Loads 0 Difficulty Rogue Special Mode None Game No. 17 Rogue 17 Adventurer 0 Explorer 0 Win Type - Total 0 Types 0/0/0/0/0/0/0 Lore% 13 Gallery% 17 Achievement% 12 Wizard Run 0 Options --------- ASCII 0 Keyboard 0 Movement Mouse Keybinds 0 Fullscreen 1 Font 18/SmallcapsGlow Map View 76x50 Tactical HUD 0 Map Filters NONE Filters NONE Steam 1 RUN: 7ea9fb63-857d-44a8-8e72-fd64d28f895f